fUST/lending_fUST_20250713
["ID","MTS","AMOUNT","RATE_DAILY","PERIOD"]
[371577472,1752361834524,-991.17,0.00017808,2]
[371577473,1752361834534,-506.86,0.00017808,2]
[371577474,1752361834543,-635.25,0.00017808,2]
[371577475,1752361834553,-246.1,0.00017808,2]
[371577476,1752361834564,-460.0,0.00017808,2]
[371577477,1752361834574,-280.13,0.00017808,2]
[371577478,1752361834584,-460.0,0.00017808,2]
[371577479,1752361834594,-460.0,0.00017808,2]
[371577480,1752361834604,-460.0,0.00017808,2]
[371577481,1752361834613,-456.9,0.00017808,2]
[371577482,1752361834623,-158.509144,0.00017888,2]
[371577483,1752361834632,-407.3054712,0.000179,2]
[371577484,1752361834642,-1000.0,0.0001792,2]
[371577485,1752361834651,-1000.0,0.0001792,2]
[371577486,1752361834661,-158.509144,0.00017979,2]
[371577487,1752361834670,-158.509144,0.00018071,2]
[371577488,1752361834680,-460.0,0.00018082,2]
[371577489,1752361834690,-460.0,0.00018082,2]
[371577490,1752361834699,-460.0,0.00018082,2]
[371577491,1752361834708,-991.17,0.00018082,2]
[371577492,1752361834718,-506.86,0.00018082,2]
[371577493,1752361834727,-635.25,0.00018082,2]
[371577494,1752361834737,-460.0,0.00018082,2]
[371577495,1752361834747,-460.0,0.00018082,2]
[371577496,1752361834756,-460.0,0.00018082,2]
[371577497,1752361834766,-460.0,0.00018082,2]
[371577498,1752361834776,-158.509144,0.00018162,2]
[371577499,1752361834786,-407.30547099,0.00018176,2]
[371577500,1752361834796,-158.509144,0.00018253,2]
[371577501,1752361834806,-158.509144,0.00018344,2]
[371577502,1752361834815,-460.0,0.00018356,2]
[371577503,1752361834825,-460.0,0.00018356,2]
[371577504,1752361834835,-991.17,0.00018356,2]
[371577505,1752361834844,-506.86,0.00018356,2]
[371577506,1752361834854,-635.25,0.00018356,2]
[371577507,1752361834864,-460.0,0.00018356,2]
[371577508,1752361834873,-460.0,0.00018356,2]
[371577509,1752361834883,-460.0,0.00018356,2]
[371577510,1752361834892,-363.6,0.00018356,2]
[371577511,1752361834902,-160.0,0.00018378,2]
[371577512,1752361834911,-838.37930271,0.00018378,2]
[371577513,1752361834921,-214.25614385,0.00018378,2]
[371577514,1752361834930,-160.0,0.00018378,2]
[371577515,1752361834944,-215.38668925,0.00018378,2]
[371577516,1752361834953,-230.64269914,0.00018378,2]
[371577517,1752361834963,-160.0,0.00018378,2]
[371577518,1752361834973,-160.0,0.00018378,2]
[371577519,1752361834983,-160.0,0.00018378,2]
[371577520,1752361834994,-160.0,0.00018378,2]
[371577521,1752361835004,-158.509144,0.00018436,2]
[371577522,1752361835013,-407.30547099,0.00018452,2]
[371577523,1752361835023,-526.99572862,0.00018468,2]
[371577524,1752361835032,-158.509144,0.00018527,2]
[371577525,1752361835042,-158.509144,0.00018618,2]
[371577526,1752361835051,-460.0,0.0001863,2]
[371577527,1752361835061,-460.0,0.0001863,2]
[371577528,1752361835071,-991.17,0.0001863,2]
[371577529,1752361835081,-506.86,0.0001863,2]
[371577530,1752361835091,-635.25,0.0001863,2]
[371577531,1752361835101,-460.0,0.0001863,2]
[371577532,1752361835111,-460.0,0.0001863,2]
[371577533,1752361835121,-460.0,0.0001863,2]
[371577534,1752361835130,-407.30547099,0.00018728,2]
[371577535,1752361835140,-1323.14,0.00018894,3]
[371577536,1752361835150,-661.58,0.00018894,3]
[371577537,1752361835160,-330.78,0.00018894,3]
[371577538,1752361835169,-151.10420862,0.000189,2]
[371577539,1752361835179,-460.0,0.00018904,2]
[371577540,1752361835188,-991.17,0.00018904,2]
[371577541,1752361835198,-506.86,0.00018904,2]
[371577542,1752361835207,-635.25,0.00018904,2]
[371577543,1752361835217,-510.25,0.00018904,2]
[371577544,1752361835227,-460.0,0.00018904,2]
[371577545,1752361835238,-460.0,0.00018904,2]
[371577546,1752361835248,-407.30547099,0.00019003,2]
[371577547,1752361835258,-316.57250055,0.00019095,2]
[371577548,1752361835267,-460.0,0.00019178,2]
[371577549,1752361835277,-991.17,0.00019178,2]
[371577550,1752361835413,-506.86,0.00019178,2]
[371577551,1752361835424,-635.25,0.00019178,2]
[371577552,1752361835440,-460.0,0.00019178,2]
[371577553,1752361835456,-460.0,0.00019178,2]
[371577554,1752361835466,-266.441865,0.00019178,2]
[371577555,1752361835475,-666.0,0.00019178,2]
[371577556,1752361835486,-328.07,0.000192,2]
[371577557,1752361835497,-407.30547099,0.00019279,2]
[371577558,1752361835506,-460.0,0.00019452,2]
[371577559,1752361835516,-991.17,0.00019452,2]
[371577560,1752361835526,-506.86,0.00019452,2]
[371577561,1752361835535,-635.25,0.00019452,2]
[371577562,1752361835545,-460.0,0.00019452,2]
[371577563,1752361835554,-460.0,0.00019452,2]
[371577564,1752361835564,-407.30547099,0.00019555,2]
[371577565,1752361835574,-197.16705223,0.00019723,2]
[371577566,1752361835584,-255.0,0.00019723,2]
[371577567,1752361835594,-205.05645519,0.00019723,2]
[371577568,1752361835603,-460.0,0.00019726,2]
[371577569,1752361835613,-991.17,0.00019726,2]
[371577570,1752361835623,-506.86,0.00019726,2]
[371577571,1752361835632,-635.25,0.00019726,2]
[371577572,1752361835641,-461.85,0.00019726,2]
[371577573,1752361835651,-460.0,0.00019726,2]
[371577574,1752361835661,-407.30547099,0.00019831,2]
[371577575,1752361835672,-460.0,0.0002,2]
[371577576,1752361835681,-991.17,0.0002,2]
[371577577,1752361835691,-506.86,0.0002,2]
[371577578,1752361835700,-635.25,0.0002,2]
[371577579,1752361835710,-460.0,0.0002,2]
[371577580,1752361835719,-407.30547099,0.00020107,2]
[371577581,1752361835729,-460.0,0.00020273,2]
[371577582,1752361835739,-991.17,0.00020273,2]
[371577583,1752361835749,-506.86,0.00020273,2]
[371577584,1752361835758,-635.25,0.00020273,2]
[371577585,1752361835767,-460.0,0.00020273,2]
[371577586,1752361835777,-407.30547099,0.00020383,3]
[371577587,1752361835787,-460.0,0.00020547,2]
[371577588,1752361835796,-991.17,0.00020547,2]
[371577589,1752361835805,-506.86,0.00020547,2]
[371577590,1752361835815,-635.25,0.00020547,2]
[371577591,1752361835825,-460.0,0.00020547,2]
[371577592,1752361835835,-528.719,0.00020649,2]
[371577593,1752361835846,-407.30547099,0.00020659,3]
[371577594,1752361835855,-460.0,0.00020821,2]
[371577595,1752361835865,-991.17,0.00020821,2]
[371577596,1752361835875,-506.86,0.00020821,2]
[371577597,1752361835885,-635.25,0.00020821,2]
[371577598,1752361835895,-460.0,0.00020821,2]
[371577599,1752361835905,-407.30547099,0.00020934,4]
[371577600,1752361835914,-68934.06316821,0.0002099,2]
[371577601,1752361835955,-31065.93683179,0.0002099,2]
[371577602,1752361835965,-328.07,0.00021,2]
[371577603,1752361835975,-153.076984,0.00021087,2]
[371577604,1752361835984,-460.0,0.00021095,2]
[371577605,1752361835995,-991.17,0.00021095,2]
[371577606,1752361836004,-506.86,0.00021095,2]
[371577607,1752361836014,-635.25,0.00021095,2]
[371577608,1752361836023,-460.0,0.00021095,2]
[371577609,1752361836033,-407.30547099,0.0002121,4]
[371577610,1752361836042,-460.0,0.00021369,2]
[371577611,1752361836052,-991.17,0.00021369,2]
[371577612,1752361836061,-506.86,0.00021369,2]
[371577613,1752361836076,-635.25,0.00021369,2]
[371577614,1752361836093,-460.0,0.00021369,2]
[371577615,1752361836103,-407.30547099,0.00021486,5]
[371577616,1752361836112,-170.9,0.00021643,2]
[371577617,1752361836122,-991.17,0.00021643,2]
[371577618,1752361836132,-506.86,0.00021643,2]
[371577619,1752361836141,-635.25,0.00021643,2]
[371577620,1752361836151,-460.0,0.00021643,2]
[371577621,1752361836160,-407.30547099,0.00021762,5]
[371577622,1752361836169,-316.57250055,0.00021816,2]
[371577623,1752361836179,-2154.0,0.00021823,2]
[371577624,1752361836189,-995.47,0.000219,2]
[371577625,1752361836198,-500.0,0.00021914,2]
[371577626,1752361836208,-500.0,0.00021914,2]
[371577627,1752361836218,-500.0,0.00021914,2]
[371577628,1752361836227,-465.30848763,0.00021914,2]
[371577629,1752361836237,-500.0,0.00021914,2]
[371577630,1752361836247,-500.0,0.00021914,2]
[371577631,1752361836257,-397.24400394,0.00021914,2]
[371577632,1752361836266,-954.45382531,0.00021914,2]
[371577633,1752361836275,-500.0,0.00021914,2]
[371577634,1752361836284,-954.45382531,0.00021914,2]
[371577635,1752361836293,-51802.87812422,0.00021915,2]
[371577636,1752361836305,-865.44487128,0.00021915,2]
[371577637,1752361836317,-319.129968,0.00021915,2]
[371577638,1752361836328,-960.05583154,0.00021915,2]
[371577639,1752361836341,-606.84252089,0.00021915,2]
[371577640,1752361836353,-807.4204031,0.00021915,2]
[371577641,1752361836372,-965.95504081,0.00021915,2]
[371577852,1752361840196,-500.0,0.00017372,2]
[371577854,1752361840205,-1000.0,0.0001792,2]
[371577856,1752361840215,-1.15569448,0.00018467,2]
[371578143,1752361843286,-836.80557099,0.00018378,2]
[371578145,1752361843296,-380.09161057,0.00018467,2]
[371578147,1752361843305,-500.0,0.00018467,2]
[371578149,1752361843315,-500.0,0.00018467,2]
[371578151,1752361843324,-397.2128737,0.00018467,2]
[371578153,1752361843334,-500.0,0.00018467,2]
[371578155,1752361843344,-439.26761586,0.00018467,2]
[371578157,1752361843354,-447.40270566,0.00018467,2]
[371578159,1752361843363,-500.0,0.00018467,2]
[371578161,1752361843373,-500.0,0.00018467,2]
[371578163,1752361843382,-500.0,0.00018467,2]
[371578166,1752361843399,-89.77028068,0.00018467,2]
[371587590,1752361949617,160.722998,0.00013699,2]
[371587607,1752362393513,460.0,0.00027397,120]
[371587618,1752362565770,500.0,0.00022986,30]
[371587626,1752362908586,160.776331,0.00013699,2]
[371587629,1752362919775,603.999999,0.0002,120]
[371587733,1752363038525,-151.5694,0.00016428,2]
[371587735,1752363038536,-155.515,0.00016437,2]
[371587737,1752363038552,-300.0,0.00016437,2]
[371587739,1752363038563,-460.0,0.00016438,2]
[371587741,1752363038575,-460.0,0.00016438,2]
[371587743,1752363038585,-460.0,0.00016438,2]
[371587745,1752363038595,-537.83262217,0.00016438,2]
[371587747,1752363038605,-460.0,0.00016438,2]
[371587749,1752363038615,-460.0,0.00016438,2]
[371587751,1752363038625,-460.0,0.00016438,2]
[371587752,1752363038635,-460.0,0.00016438,2]
[371587754,1752363038645,-460.0,0.00016438,2]
[371587756,1752363038654,-460.0,0.00016438,2]
[371587758,1752363038664,-460.0,0.00016438,2]
[371587760,1752363038673,-449.68,0.00016438,2]
[371587762,1752363038683,-460.0,0.00016438,2]
[371587765,1752363038694,-460.0,0.00016438,2]
[371587766,1752363038704,-460.0,0.00016438,2]
[371587768,1752363038714,-460.0,0.00016438,2]
[371587770,1752363038724,-460.0,0.00016438,2]
[371587773,1752363038734,-460.0,0.00016438,2]
[371587774,1752363038744,-460.0,0.00016438,2]
[371587777,1752363038754,-460.0,0.00016438,2]
[371587779,1752363038764,-460.0,0.00016438,2]
[371587782,1752363038774,-460.0,0.00016438,2]
[371587783,1752363038783,-460.0,0.00016438,2]
[371587786,1752363038796,-460.0,0.00016438,2]
[371587787,1752363038807,-523.95726832,0.00016438,2]
[371587789,1752363038817,-460.0,0.00016438,2]
[371587791,1752363038827,-460.0,0.00016438,2]
[371587793,1752363038837,-460.0,0.00016438,2]
[371587796,1752363038846,-460.0,0.00016438,2]
[371587798,1752363038856,-460.0,0.00016438,2]
[371587799,1752363038865,-460.0,0.00016438,2]
[371587801,1752363038875,-502.24833765,0.00016438,2]
[371587803,1752363038884,-460.0,0.00016438,2]
[371587805,1752363038894,-460.0,0.00016438,2]
[371587807,1752363038904,-460.0,0.00016438,2]
[371587809,1752363038913,-460.0,0.00016438,2]
[371587811,1752363038923,-460.0,0.00016438,2]
[371587814,1752363038933,-555.01699174,0.00016438,2]
[371587816,1752363038943,-460.0,0.00016438,2]
[371587818,1752363038952,-460.0,0.00016438,2]
[371587820,1752363038961,-460.0,0.00016438,2]
[371587821,1752363038970,-460.0,0.00016438,2]
[371587823,1752363038980,-460.0,0.00016438,2]
[371587825,1752363038989,-460.0,0.00016438,2]
[371587827,1752363038999,-460.0,0.00016438,2]
[371587829,1752363039008,-460.0,0.00016438,2]
[371587831,1752363039018,-287.29681853,0.00016438,2]
[371587832,1752363039027,-460.0,0.00016438,2]
[371587833,1752363039037,-460.0,0.00016438,2]
[371587834,1752363039050,-460.0,0.00016438,2]
[371587835,1752363039059,-460.0,0.00016438,2]
[371587836,1752363039069,-460.0,0.00016438,2]
[371587837,1752363039080,-460.0,0.00016438,2]
[371587838,1752363039089,-446.38705026,0.00016438,2]
[371587840,1752363039099,-460.0,0.00016438,2]
[371587842,1752363039108,-460.0,0.00016438,2]
[371587844,1752363039118,-460.0,0.00016438,2]
[371587845,1752363039127,-460.0,0.00016438,2]
[371587847,1752363039137,-178.21062223,0.00016438,2]
[371587849,1752363039147,-460.0,0.00016438,2]
[371587851,1752363039156,-460.0,0.00016438,2]
[371587853,1752363039166,-460.0,0.00016438,2]
[371587855,1752363039176,-460.0,0.00016438,2]
[371587857,1752363039185,-460.0,0.00016438,2]
[371587859,1752363039194,-542.93348129,0.00016438,2]
[371587861,1752363039203,-460.0,0.00016438,2]
[371587863,1752363039213,-460.0,0.00016438,2]
[371587865,1752363039224,-460.0,0.00016438,2]
[371587868,1752363039234,-460.0,0.00016438,2]
[371587869,1752363039243,-460.0,0.00016438,2]
[371587871,1752363039253,-460.0,0.00016438,2]
[371587873,1752363039263,-460.0,0.00016438,2]
[371587876,1752363039273,-460.0,0.00016438,2]
[371587877,1752363039282,-460.0,0.00016438,2]
[371587879,1752363039291,-460.0,0.00016438,2]
[371587882,1752363039302,-460.0,0.00016438,2]
[371587884,1752363039312,-460.0,0.00016438,2]
[371587886,1752363039321,-460.0,0.00016438,2]
[371587887,1752363039330,-460.0,0.00016438,2]
[371587890,1752363039340,-460.0,0.00016438,2]
[371587892,1752363039349,-460.0,0.00016438,2]
[371587894,1752363039359,-460.0,0.00016438,2]
[371587896,1752363039368,-576.80238011,0.00016438,2]
[371587897,1752363039377,-460.0,0.00016438,2]
[371587899,1752363039387,-460.0,0.00016438,2]
[371587902,1752363039396,-460.0,0.00016438,2]
[371587903,1752363039406,-460.0,0.00016438,2]
[371587906,1752363039415,-460.0,0.00016438,2]
[371587907,1752363039425,-460.0,0.00016438,2]
[371587909,1752363039434,-460.0,0.00016438,2]
[371587911,1752363039444,-460.0,0.00016438,2]
[371587913,1752363039453,-460.0,0.00016438,2]
[371587915,1752363039462,-460.0,0.00016438,2]
[371587917,1752363039472,-460.0,0.00016438,2]
[371587919,1752363039482,-460.0,0.00016438,2]
[371587921,1752363039491,-500.0,0.00016438,2]
[371587923,1752363039500,-460.0,0.00016438,2]
[371587925,1752363039509,-460.0,0.00016438,2]
[371587927,1752363039519,-460.0,0.00016438,2]
[371587929,1752363039528,-464.30503232,0.00016438,2]
[371587931,1752363039538,-460.0,0.00016438,2]
[371587933,1752363039549,-460.0,0.00016438,2]
[371587935,1752363039559,-460.0,0.00016438,2]
[371587937,1752363039568,-460.0,0.00016438,2]
[371587939,1752363039578,-460.0,0.00016438,2]
[371587941,1752363039587,-460.0,0.00016438,2]
[371587943,1752363039597,-460.0,0.00016438,2]
[371587945,1752363039606,-460.0,0.00016438,2]
[371587947,1752363039616,-460.0,0.00016438,2]
[371587949,1752363039626,-460.0,0.00016438,2]
[371587951,1752363039636,-460.0,0.00016438,2]
[371587953,1752363039646,-460.0,0.00016438,2]
[371587955,1752363039655,-460.0,0.00016438,2]
[371587957,1752363039665,-207.61887503,0.00016438,2]
[371587959,1752363039675,-460.0,0.00016438,2]
[371587961,1752363039684,-460.0,0.00016438,2]
[371587963,1752363039694,-460.0,0.00016438,2]
[371587965,1752363039704,-460.0,0.00016438,2]
[371587967,1752363039713,-460.0,0.00016438,2]
[371587982,1752363039854,-460.0,0.00016438,2]
[371587984,1752363039866,-460.0,0.00016438,2]
[371587986,1752363039877,-460.0,0.00016438,2]
[371587988,1752363039893,-460.0,0.00016438,2]
[371587991,1752363039903,-460.0,0.00016438,2]
[371587992,1752363039912,-460.0,0.00016438,2]
[371587996,1752363039923,-460.0,0.00016438,2]
[371587999,1752363039933,-460.0,0.00016438,2]
[371588001,1752363039943,-209.79502532,0.00016438,2]
[371588003,1752363039953,-460.0,0.00016438,2]
[371588005,1752363039963,-460.0,0.00016438,2]
[371588007,1752363039973,-460.0,0.00016438,2]
[371588009,1752363039983,-460.0,0.00016438,2]
[371588011,1752363039993,-460.0,0.00016438,2]
[371588013,1752363040003,-460.0,0.00016438,2]
[371588015,1752363040013,-460.0,0.00016438,2]
[371588017,1752363040022,-1000.0,0.00016438,2]
[371588019,1752363040031,-460.0,0.00016438,2]
[371588021,1752363040041,-460.0,0.00016438,2]
[371588023,1752363040054,-460.0,0.00016438,2]
[371588025,1752363040063,-460.0,0.00016438,2]
[371588027,1752363040073,-460.0,0.00016438,2]
[371588029,1752363040083,-460.0,0.00016438,2]
[371588031,1752363040092,-460.0,0.00016438,2]
[371588033,1752363040102,-460.0,0.00016438,2]
[371588035,1752363040111,-808.94,0.00016438,2]
[371588037,1752363040121,-460.0,0.00016438,2]
[371588039,1752363040130,-1276.77,0.00016438,2]
[371588040,1752363040140,-460.0,0.00016438,2]
[371588042,1752363040150,-460.0,0.00016438,2]
[371588045,1752363040160,-460.0,0.00016438,2]
[371588047,1752363040169,-460.0,0.00016438,2]
[371588049,1752363040178,-460.0,0.00016438,2]
[371588051,1752363040188,-460.0,0.00016438,2]
[371588053,1752363040197,-460.0,0.00016438,2]
[371588055,1752363040206,-460.0,0.00016438,2]
[371588057,1752363040216,-460.0,0.00016438,2]
[371588059,1752363040225,-460.0,0.00016438,2]
[371588061,1752363040235,-312.13819675,0.00016438,2]
[371588063,1752363040245,-460.0,0.00016438,2]
[371588065,1752363040254,-460.0,0.00016438,2]
[371588067,1752363040264,-460.0,0.00016438,2]
[371588069,1752363040273,-460.0,0.00016438,2]
[371588071,1752363040283,-460.0,0.00016438,2]
[371588073,1752363040293,-460.0,0.00016438,2]
[371588074,1752363040305,-460.0,0.00016438,2]
[371588077,1752363040317,-460.0,0.00016438,2]
[371588079,1752363040328,-460.0,0.00016438,2]
[371588081,1752363040337,-460.0,0.00016438,2]
[371588083,1752363040347,-460.0,0.00016438,2]
[371588085,1752363040356,-460.0,0.00016438,2]
[371588087,1752363040366,-460.0,0.00016438,2]
[371588089,1752363040375,-460.0,0.00016438,2]
[371588091,1752363040385,-460.0,0.00016438,2]
[371588093,1752363040395,-460.0,0.00016438,2]
[371588095,1752363040404,-460.0,0.00016438,2]
[371588097,1752363040414,-460.0,0.00016438,2]
[371588099,1752363040424,-460.0,0.00016438,2]
[371588101,1752363040433,-460.0,0.00016438,2]
[371588103,1752363040443,-460.0,0.00016438,2]
[371588105,1752363040452,-460.0,0.00016438,2]
[371588107,1752363040462,-460.0,0.00016438,2]
[371588109,1752363040471,-471.6,0.00016438,2]
[371588111,1752363040481,-460.0,0.00016438,2]
[371588113,1752363040490,-460.0,0.00016438,2]
[371588115,1752363040501,-460.0,0.00016438,2]
[371588117,1752363040510,-460.0,0.00016438,2]
[371588119,1752363040520,-500.0,0.00016438,2]
[371588121,1752363040529,-460.0,0.00016438,2]
[371588123,1752363040538,-460.0,0.00016438,2]
[371588125,1752363040550,-460.0,0.00016438,2]
[371588127,1752363040560,-460.0,0.00016438,2]
[371588129,1752363040570,-460.0,0.00016438,2]
[371588131,1752363040580,-460.0,0.00016438,2]
[371588133,1752363040589,-460.0,0.00016438,2]
[371588135,1752363040599,-460.0,0.00016438,2]
[371588137,1752363040608,-460.0,0.00016438,2]
[371588139,1752363040617,-460.0,0.00016438,2]
[371588141,1752363040627,-460.0,0.00016438,2]
[371588143,1752363040636,-460.0,0.00016438,2]
[371588145,1752363040646,-460.0,0.00016438,2]
[371588147,1752363040656,-460.0,0.00016438,2]
[371588149,1752363040665,-460.0,0.00016438,2]
[371588151,1752363040675,-460.0,0.00016438,2]
[371588153,1752363040684,-460.0,0.00016438,2]
[371588155,1752363040693,-460.0,0.00016438,2]
[371588157,1752363040702,-460.0,0.00016438,2]
[371588159,1752363040711,-460.0,0.00016438,2]
[371588161,1752363040721,-460.0,0.00016438,2]
[371588163,1752363040730,-460.0,0.00016438,2]
[371588165,1752363040740,-460.0,0.00016438,2]
[371588167,1752363040749,-460.0,0.00016438,2]
[371588169,1752363040759,-577.45,0.00016438,2]
[371588171,1752363040768,-460.0,0.00016438,2]
[371588173,1752363040777,-460.0,0.00016438,2]
[371588175,1752363040787,-460.0,0.00016438,2]
[371588177,1752363040799,-460.0,0.00016438,2]
[371588179,1752363040810,-184.48562918,0.00016438,2]
[371588181,1752363040819,-460.0,0.00016438,2]
[371588183,1752363040829,-460.0,0.00016438,2]
[371588185,1752363040838,-505.21005209,0.00016438,2]
[371588187,1752363040848,-460.0,0.00016438,2]
[371588189,1752363040857,-460.0,0.00016438,2]
[371588191,1752363040868,-460.0,0.00016438,2]
[371588193,1752363040877,-460.0,0.00016438,2]
[371588195,1752363040892,-460.0,0.00016438,2]
[371588197,1752363040901,-460.0,0.00016438,2]
[371588199,1752363040911,-460.0,0.00016438,2]
[371588201,1752363040920,-460.0,0.00016438,2]
[371588203,1752363040930,-460.0,0.00016438,2]
[371588205,1752363040939,-460.0,0.00016438,2]
[371588207,1752363040949,-460.0,0.00016438,2]
[371588209,1752363040960,-460.0,0.00016438,2]
[371588211,1752363040969,-460.0,0.00016438,2]
[371588214,1752363040979,-460.0,0.00016438,2]
[371588215,1752363040988,-460.0,0.00016438,2]
[371588218,1752363040998,-460.0,0.00016438,2]
[371588220,1752363041007,-460.0,0.00016438,2]
[371588222,1752363041017,-460.0,0.00016438,2]
[371588224,1752363041026,-460.0,0.00016438,2]
[371588226,1752363041036,-460.0,0.00016438,2]
[371588228,1752363041046,-460.0,0.00016438,2]
[371588229,1752363041055,-460.0,0.00016438,2]
[371588231,1752363041065,-460.0,0.00016438,2]
[371588233,1752363041074,-460.0,0.00016438,2]
[371588235,1752363041084,-500.0,0.00016438,2]
[371588238,1752363041094,-688.84,0.00016702,3]
[371588239,1752363041103,-344.42,0.00016702,3]
[371588241,1752363041113,-172.21,0.00016702,3]
[371588243,1752363041122,-516.68,0.00016702,3]
[371588245,1752363041132,-500.0,0.00016711,2]
[371588248,1752363041142,-500.0,0.00016711,2]
[371588250,1752363041151,-500.0,0.00016711,2]
[371588252,1752363041161,-500.0,0.00016711,2]
[371588254,1752363041170,-500.0,0.00016711,2]
[371588256,1752363041180,-500.0,0.00016711,2]
[371588258,1752363041189,-500.0,0.00016711,2]
[371588260,1752363041198,-500.0,0.00016711,2]
[371588262,1752363041207,-500.0,0.00016711,2]
[371588263,1752363041216,-500.0,0.00016711,2]
[371588266,1752363041226,-500.0,0.00016711,2]
[371588268,1752363041235,-500.0,0.00016711,2]
[371588269,1752363041245,-500.0,0.00016711,2]
[371588271,1752363041255,-500.0,0.00016711,2]
[371588273,1752363041264,-500.0,0.00016711,2]
[371588275,1752363041274,-315.80367179,0.00016711,2]
[371588277,1752363041283,-500.0,0.00016711,2]
[371588279,1752363041292,-500.0,0.00016711,2]
[371588281,1752363041303,-500.0,0.00016711,2]
[371588283,1752363041312,-500.0,0.00016711,2]
[371588285,1752363041321,-500.0,0.00016711,2]
[371588287,1752363041331,-500.0,0.00016711,2]
[371588289,1752363041340,-500.0,0.00016711,2]
[371588291,1752363041350,-500.0,0.00016711,2]
[371588293,1752363041360,-460.0,0.00016712,2]
[371588296,1752363041370,-460.0,0.00016712,2]
[371588298,1752363041380,-460.0,0.00016712,2]
[371588300,1752363041389,-460.0,0.00016712,2]
[371588302,1752363041398,-573.4,0.00016712,2]
[371588304,1752363041408,-460.0,0.00016712,2]
[371588306,1752363041417,-460.0,0.00016712,2]
[371588308,1752363041427,-460.0,0.00016712,2]
[371588309,1752363041436,-572.7,0.00016712,2]
[371588311,1752363041445,-460.0,0.00016712,2]
[371588313,1752363041454,-460.0,0.00016712,2]
[371588315,1752363041464,-460.0,0.00016712,2]
[371588318,1752363041474,-606.67,0.00016712,2]
[371588320,1752363041484,-576.14,0.00016712,2]
[371588322,1752363041493,-522.63704269,0.00016712,2]
[371588324,1752363041503,-460.0,0.00016712,2]
[371588326,1752363041512,-460.0,0.00016712,2]
[371588328,1752363041523,-460.0,0.00016712,2]
[371588330,1752363041532,-460.0,0.00016712,2]
[371588332,1752363041542,-460.0,0.00016712,2]
[371588334,1752363041553,-460.0,0.00016712,2]
[371588336,1752363041562,-484.3,0.00016712,2]
[371588338,1752363041572,-460.0,0.00016712,2]
[371588340,1752363041581,-460.0,0.00016712,2]
[371588342,1752363041591,-456.31836754,0.00016712,2]
[371588343,1752363041600,-435.41,0.00016712,2]
[371588346,1752363041610,-460.0,0.00016712,2]
[371588348,1752363041619,-586.43556117,0.00016712,2]
[371588350,1752363041630,-460.0,0.00016712,2]
[371588352,1752363041639,-460.0,0.00016712,2]
[371588354,1752363041649,-460.0,0.00016712,2]
[371588356,1752363041659,-460.0,0.00016712,2]
[371588358,1752363041671,-460.0,0.00016712,2]
[371588360,1752363041680,-460.0,0.00016712,2]